bitfinex/quotes_BTCUSD_20250615
["timestamp","ask_amount","ask_price","bid_price","bid_amount"]
[1750031132346,5.08079304,105730.0,105720.0,0.15656]
[1750031132569,5.16806073,105730.0,105720.0,0.15656]
[1750031132837,5.17694225,105730.0,105720.0,0.15556]
[1750031133049,0.0153,105720.0,105710.0,0.52994936]
[1750031133273,0.0153,105720.0,105710.0,0.62623826]
[1750031133936,0.03812762,105720.0,105710.0,0.62623826]
[1750031134160,0.0153,105720.0,105710.0,0.62623826]
[1750031134380,0.0153,105720.0,105710.0,0.62723826]
[1750031134626,0.0153,105720.0,105710.0,0.62823826]
[1750031135323,0.1117831,105720.0,105710.0,0.62823826]
[1750031135551,0.50559461,105720.0,105710.0,0.62811826]
[1750031136009,0.50559461,105720.0,105710.0,0.47267826]
[1750031136236,4.79133838,105720.0,105710.0,0.47267826]
[1750031136463,4.79133838,105720.0,105710.0,0.62811826]
[1750031136689,4.79133868,105720.0,105710.0,0.62811826]
[1750031136916,4.79133868,105720.0,105710.0,0.47267826]
[1750031137145,4.78245661,105720.0,105710.0,0.5525289]
[1750031137373,4.78245661,105720.0,105710.0,0.30084714]
[1750031137602,4.79133877,105720.0,105710.0,0.45624714]
[1750031137851,4.78245661,105720.0,105710.0,0.45624714]
[1750031138071,4.79133878,105720.0,105710.0,0.45624714]
[1750031138324,4.39752722,105720.0,105710.0,0.45624714]
[1750031138540,4.34019893,105720.0,105710.0,0.45624714]
[1750031138778,4.33131679,105720.0,105710.0,0.45624714]
[1750031140162,4.7251283,105720.0,105710.0,0.00204714]
[1750031140442,5.16127752,105720.0,105710.0,0.15744714]
[1750031140670,4.67131679,105720.0,105710.0,0.15744714]
[1750031140887,5.07401063,105720.0,105710.0,0.15744714]
[1750031141126,5.07179002,105720.0,105710.0,0.15744714]
[1750031141374,4.64647851,105720.0,105710.0,0.15744714]
[1750031141590,4.64869905,105720.0,105710.0,0.15744714]
[1750031141820,4.65536076,105720.0,105710.0,0.15744714]
[1750031142102,4.65536077,105720.0,105710.0,0.15744714]
[1750031142316,4.65536071,105720.0,105710.0,0.15744714]
[1750031142568,4.65536072,105720.0,105710.0,0.15744714]
[1750031142776,4.64647848,105720.0,105710.0,0.00204714]
[1750031143004,4.65536075,105720.0,105710.0,0.15752714]
[1750031143227,4.65536082,105720.0,105710.0,0.15752714]
[1750031143450,4.65536085,105720.0,105710.0,0.15752714]
[1750031143667,0.37627822,105720.0,105710.0,0.15752714]
[1750031143885,0.38516045,105720.0,105710.0,0.15752714]
[1750031144131,0.36961651,105720.0,105710.0,0.15752714]
[1750031144365,0.38516042,105720.0,105710.0,0.15752714]
[1750031144574,0.38516043,105720.0,105710.0,0.15752714]
[1750031145024,0.37849875,105720.0,105710.0,0.15752714]
[1750031145247,0.38516043,105720.0,105710.0,0.15752714]
[1750031145469,0.03849862,105720.0,105710.0,0.85021899]
[1750031145699,0.03849808,105720.0,105710.0,1.05286977]
[1750031145946,0.03849787,105720.0,105710.0,1.05286977]
[1750031146191,0.03849788,105720.0,105710.0,0.65905826]
[1750031146419,0.02961651,105720.0,105710.0,0.65905826]
[1750031146645,0.03849788,105720.0,105710.0,0.65905826]
[1750031146871,0.0384978,105720.0,105710.0,0.65905826]
[1750031147091,0.03849778,105720.0,105710.0,0.65905826]
[1750031147304,0.02961651,105720.0,105710.0,0.65905826]
[1750031147533,0.03849776,105720.0,105710.0,0.75520748]
[1750031147750,0.02961651,105720.0,105710.0,1.14901899]
[1750031148208,0.02961651,105720.0,105710.0,1.15847883]
[1750031148440,0.00666172,105720.0,105710.0,1.34767568]
[1750031148682,0.00666172,105720.0,105710.0,1.15847883]
[1750031149134,0.00666172,105720.0,105710.0,1.14901899]
[1750031150300,0.01554257,105720.0,105710.0,1.14901899]
[1750031150537,0.00666172,105720.0,105710.0,1.14901899]
[1750031150788,0.01554256,105720.0,105710.0,1.14901899]
[1750031151020,0.02987388,105720.0,105710.0,1.14901899]
[1750031151226,0.01554256,105720.0,105710.0,1.14901899]
[1750031151440,0.03843384,105720.0,105710.0,1.14901899]
[1750031151662,0.03843384,105720.0,105710.0,1.15847883]
[1750031151663,0.00666172,105720.0,105710.0,1.15847883]
[1750031151963,0.01554256,105720.0,105710.0,1.14901899]
[1750031152176,0.00666172,105720.0,105710.0,1.14901899]
[1750031152403,0.01554258,105720.0,105710.0,1.18937899]
[1750031152631,0.01554256,105720.0,105710.0,0.82180041]
[1750031152849,0.00666172,105720.0,105710.0,1.01760041]
[1750031153078,0.01554257,105720.0,105710.0,1.01760041]
[1750031153300,0.00666172,105720.0,105710.0,1.01760041]
[1750031153535,0.00666172,105720.0,105710.0,0.6237889]
[1750031153967,0.01554258,105720.0,105710.0,0.6237889]
[1750031154426,0.01554257,105720.0,105710.0,0.6237889]
[1750031154887,0.01554257,105720.0,105710.0,1.01760041]
[1750031155118,0.00666172,105720.0,105710.0,1.01760041]
[1750031155345,0.03809051,105720.0,105710.0,1.11374963]
[1750031155574,0.03809052,105720.0,105710.0,1.11374963]
[1750031155846,0.03809051,105720.0,105710.0,1.11374963]
[1750031156060,0.02920966,105720.0,105710.0,1.11374963]
[1750031156300,0.03809051,105720.0,105710.0,1.11374963]
[1750031156544,0.02920966,105720.0,105710.0,1.11374963]
[1750031156758,0.03809051,105720.0,105710.0,1.11374963]
[1750031157222,0.0380905,105720.0,105710.0,1.11374963]
[1750031157468,0.02920966,105720.0,105710.0,1.11374963]
[1750031157734,0.0380905,105720.0,105710.0,1.11374963]
[1750031157949,0.02920966,105720.0,105710.0,1.11374963]
[1750031158407,0.02920966,105720.0,105710.0,1.14184614]
[1750031158642,0.03809044,105720.0,105710.0,1.14184614]
[1750031158862,0.02920966,105720.0,105710.0,1.14184614]
[1750031159307,0.03809044,105720.0,105710.0,1.14184614]
[1750031159783,0.03809044,105720.0,105710.0,1.11374963]
[1750031160239,0.03809044,105720.0,105710.0,0.4279889]
[1750031160462,0.03809044,105720.0,105710.0,0.6236689]
[1750031160692,0.03809061,105720.0,105710.0,0.4279889]
[1750031160882,0.03809057,105720.0,105710.0,0.5927289]
[1750031161149,0.03809072,105720.0,105710.0,0.5927289]
[1750031161364,0.02920966,105720.0,105710.0,0.5927289]
[1750031161806,0.03809079,105720.0,105710.0,0.5927289]
[1750031162036,0.03809083,105720.0,105710.0,0.5927289]
[1750031162263,0.0380908,105720.0,105710.0,0.5927289]
[1750031162508,0.02920966,105720.0,105710.0,0.4289889]
[1750031162730,0.0380908,105720.0,105710.0,0.6246289]
[1750031162953,0.02920966,105720.0,105710.0,0.6246289]
[1750031163425,0.02920966,105720.0,105710.0,0.4289889]
[1750031163647,0.0380908,105720.0,105710.0,0.6245889]
[1750031164308,0.02920966,105720.0,105710.0,0.6245889]
[1750031165900,0.02920966,105720.0,105710.0,0.6245089]
[1750031167735,0.02920966,105720.0,105710.0,0.72065812]
[1750031167955,0.02920966,105720.0,105710.0,1.11446963]
[1750031168581,0.02920966,105720.0,105710.0,1.15202598]
[1750031168849,0.02920966,105720.0,105710.0,1.34122283]
[1750031169069,0.02920966,105720.0,105710.0,1.35068249]
[1750031169289,0.02920966,105720.0,105710.0,1.26399284]
[1750031169516,0.02920966,105720.0,105710.0,1.27345232]
[1750031169517,0.00666172,105720.0,105710.0,1.27345232]
[1750031169751,0.00666172,105720.0,105710.0,1.35850089]
[1750031169976,0.00666172,105720.0,105710.0,1.39612775]
[1750031170421,0.00666172,105720.0,105710.0,1.49227697]
[1750031170643,0.00666172,105720.0,105710.0,1.29675697]
[1750031170863,0.00666172,105720.0,105710.0,1.49203697]
[1750031171148,0.00666172,105720.0,105710.0,1.49103697]
[1750031171616,0.00666172,105720.0,105710.0,1.8739216]
[1750031171836,0.00666172,105720.0,105710.0,1.83529474]
[1750031172064,0.00666172,105720.0,105710.0,1.84029474]
[1750031172756,0.00666172,105720.0,105710.0,1.83529474]
[1750031173222,0.00666172,105720.0,105710.0,1.84329474]
[1750031173446,0.00666172,105720.0,105710.0,1.64801474]
[1750031173676,0.00666172,105720.0,105710.0,1.84329474]
[1750031177900,0.00666172,105720.0,105710.0,1.47627616]
[1750031178106,0.00666172,105720.0,105710.0,1.67155616]
[1750031181149,0.00666172,105720.0,105710.0,1.70910509]
[1750031181594,0.00666172,105720.0,105710.0,1.51382509]
[1750031181816,0.00666172,105720.0,105710.0,1.51382405]
[1750031182029,0.00666172,105720.0,105710.0,1.70906405]
[1750031182250,0.00666172,105720.0,105710.0,1.80521069]
[1750031182734,0.00666172,105720.0,105710.0,1.67151616]
[1750031182948,0.00666172,105720.0,105710.0,1.70906158]
[1750031190150,0.0331,105740.0,105720.0,0.89912768]
[1750031190462,0.0331,105740.0,105730.0,0.25120176]
[1750031191319,0.0331,105740.0,105730.0,0.09624176]
[1750031191529,0.47475709,105740.0,105730.0,0.09624176]
[1750031191763,0.47475709,105740.0,105730.0,0.25220176]
[1750031191997,0.42691151,105740.0,105730.0,0.25220176]
[1750031193507,0.0331,105740.0,105730.0,0.25220176]
[1750031194491,0.0331,105740.0,105730.0,0.09724176]
[1750031194698,0.0331,105740.0,105730.0,0.25220176]
[1750031196433,0.42691151,105740.0,105730.0,0.25220176]
[1750031196651,0.43579175,105740.0,105730.0,0.25220176]
[1750031197105,0.04198024,105740.0,105730.0,0.25220176]
[1750031197334,0.0331,105740.0,105730.0,0.25220176]
[1750031200927,0.11494558,105740.0,105730.0,0.25220176]
[1750031201149,0.11494558,105740.0,105730.0,0.09724176]
[1750031201379,4.78561909,105740.0,105730.0,0.25220176]
[1750031201862,4.79449953,105740.0,105730.0,0.54434004]
[1750031202491,5.13449957,105740.0,105730.0,0.54434004]
[1750031202710,5.13449958,105740.0,105730.0,0.54434004]
[1750031203927,5.052654,105740.0,105730.0,0.54434004]
[1750031204186,5.04377351,105740.0,105730.0,0.54434004]
[1750031204417,5.05265392,105740.0,105730.0,0.54434004]
[1750031204644,5.04377351,105740.0,105730.0,0.54434004]
[1750031204884,0.3731,105740.0,105730.0,0.54434004]
[1750031205584,0.38198026,105740.0,105730.0,0.54434004]
[1750031205879,0.38198027,105740.0,105730.0,0.54434004]
[1750031206106,0.38198029,105740.0,105730.0,0.54434004]
[1750031206331,0.38198027,105740.0,105730.0,0.54434004]
[1750031206551,0.38198029,105740.0,105730.0,0.54434004]
[1750031206981,0.3731,105740.0,105730.0,0.54434004]
[1750031207204,0.38198029,105740.0,105730.0,0.54434004]
[1750031207436,0.3731,105740.0,105730.0,0.54434004]
[1750031207651,0.38198029,105740.0,105730.0,0.54434004]
[1750031207873,0.3731,105740.0,105730.0,0.54434004]
[1750031208093,0.38198029,105740.0,105730.0,0.54434004]
[1750031208310,0.38198037,105740.0,105730.0,0.54434004]
[1750031208535,0.38198039,105740.0,105730.0,0.54434004]
[1750031208755,0.3731,105740.0,105730.0,0.54434004]
[1750031208971,0.3819804,105740.0,105730.0,0.54434004]
[1750031209190,0.3731,105740.0,105730.0,0.54434004]
[1750031209667,0.38198033,105740.0,105730.0,0.54434004]
[1750031209881,0.3731,105740.0,105730.0,0.54434004]
[1750031210093,0.38198034,105740.0,105730.0,0.54434004]
[1750031210987,0.38198031,105740.0,105730.0,0.54434004]
[1750031211216,0.3819803,105740.0,105730.0,0.54434004]
[1750031211478,0.0515443,105750.0,105730.0,1.01066761]
[1750031211718,0.0515443,105750.0,105740.0,0.39419546]
[1750031211935,0.0321,105760.0,105740.0,0.49043722]
[1750031212162,0.3721,105760.0,105750.0,0.15496]
[1750031212386,0.38097877,105760.0,105750.0,0.15496]
[1750031212613,0.38097866,105760.0,105750.0,0.15496]
[1750031212834,0.3721,105760.0,105750.0,0.15496]
[1750031213273,0.05238493,105760.0,105750.0,0.15496]
[1750031213557,0.05285638,105760.0,105750.0,0.25120176]
[1750031213971,0.05285638,105760.0,105750.0,0.29148176]
[1750031218901,0.05285638,105760.0,105750.0,0.09624176]
[1750031219167,0.05285638,105760.0,105750.0,0.29148176]
[1750031220338,0.49264487,105760.0,105750.0,0.29144176]
[1750031220570,0.45593039,105760.0,105750.0,0.29144176]
[1750031221026,0.45593029,105760.0,105750.0,0.29144176]
[1750031221309,0.44705184,105760.0,105750.0,0.09624176]
[1750031221537,0.03645638,105760.0,105750.0,0.29144176]
[1750031221761,0.04533483,105760.0,105750.0,0.29144176]
[1750031221983,0.03645638,105760.0,105750.0,0.29144176]
[1750031223146,0.03645638,105760.0,105750.0,0.09624176]
[1750031223382,0.05215638,105760.0,105750.0,0.09624176]
[1750031223610,0.05215638,105760.0,105750.0,0.29144176]
[1750031226986,0.05215638,105760.0,105750.0,0.1952]
[1750031228984,0.05215638,105760.0,105740.0,0.39419546]
[1750031229258,0.05215638,105760.0,105750.0,0.1952]
[1750031231292,0.05215638,105760.0,105750.0,0.58939546]
[1750031232498,0.03645638,105760.0,105750.0,0.58939546]
[1750031233881,0.05285638,105760.0,105750.0,0.58939546]
[1750031234105,0.05285638,105760.0,105750.0,0.1952]
[1750031238069,0.0928079,105760.0,105750.0,0.1952]
[1750031238762,0.05285638,105760.0,105750.0,0.1952]
[1750031238992,0.03645638,105760.0,105750.0,0.1952]
[1750031243909,0.05285638,105760.0,105750.0,0.1952]
[1750031246646,0.05285638,105760.0,105740.0,0.8107557]
[1750031246874,0.05285638,105760.0,105750.0,0.1952]
[1750031247098,0.13780313,105760.0,105750.0,0.1952]
[1750031247320,0.58109644,105760.0,105750.0,0.1952]
[1750031247549,0.14668179,105760.0,105750.0,0.1952]
[1750031247767,0.13780313,105760.0,105750.0,0.1952]
[1750031251215,0.13780313,105760.0,105740.0,0.89195355]
[1750031251679,0.13780313,105760.0,105740.0,0.85985355]
[1750031251905,0.58109644,105760.0,105740.0,0.85985355]
[1750031252167,0.58109644,105760.0,105740.0,0.41656024]
[1750031252385,0.58109644,105760.0,105750.0,0.19516]
[1750031252609,0.59097516,105760.0,105750.0,0.19516]
[1750031252821,0.59097514,105760.0,105750.0,0.19516]
[1750031253304,0.59097515,105760.0,105750.0,0.19516]
[1750031253596,0.58997516,105760.0,105750.0,0.19516]
[1750031253821,0.58109644,105760.0,105750.0,0.15488]
[1750031254043,0.58209644,105760.0,105750.0,0.15488]
[1750031254264,0.59097514,105760.0,105750.0,0.15488]
[1750031254966,0.59097513,105760.0,105750.0,0.15488]
[1750031255408,0.58209644,105760.0,105750.0,0.15488]
[1750031255836,0.59097515,105760.0,105750.0,0.15488]
[1750031256046,0.5909751,105760.0,105750.0,0.15488]
[1750031256333,0.59097507,105760.0,105750.0,0.15488]
[1750031256560,0.13880313,105760.0,105750.0,0.15488]
[1750031258529,0.58209644,105760.0,105750.0,0.15488]
[1750031258746,0.14768173,105760.0,105750.0,0.15488]
[1750031258965,0.13880313,105760.0,105750.0,0.15488]
[1750031260010,0.58209644,105760.0,105750.0,0.15488]
[1750031260461,0.13880313,105760.0,105740.0,0.85985355]
[1750031260679,0.13880313,105760.0,105750.0,0.19512]
[1750031261349,0.58209644,105760.0,105750.0,0.19512]
[1750031261585,0.59097507,105760.0,105750.0,0.19512]
[1750031261813,0.59097509,105760.0,105750.0,0.19512]
[1750031262054,0.5909751,105760.0,105740.0,0.85985355]
[1750031262307,0.47449331,105750.0,105740.0,0.38838004]
[1750031262518,0.53261295,105750.0,105740.0,0.58350004]
[1750031262941,0.54149224,105750.0,105740.0,0.29213828]
[1750031263156,0.54149224,105750.0,105740.0,0.48725828]
[1750031263384,0.54149218,105750.0,105740.0,0.48725828]
[1750031263653,0.53261295,105750.0,105740.0,0.48725828]
[1750031263993,0.54149221,105750.0,105740.0,0.48725828]
[1750031264365,0.54149222,105750.0,105740.0,0.48725828]
[1750031264583,0.53261295,105750.0,105740.0,0.48725828]
[1750031264798,0.54149217,105750.0,105740.0,0.48725828]
[1750031265012,0.53261295,105750.0,105740.0,0.48725828]
[1750031265238,0.54149217,105750.0,105740.0,0.48725828]
[1750031265477,0.53261295,105750.0,105740.0,0.48825828]
[1750031265714,0.54149216,105750.0,105740.0,0.48825828]
[1750031265934,0.54149219,105750.0,105740.0,0.48825828]
[1750031266152,0.54149216,105750.0,105740.0,0.48825828]
[1750031266378,0.54149207,105750.0,105740.0,0.48825828]
[1750031266594,0.54149211,105750.0,105740.0,0.48825828]
[1750031266811,0.53261295,105750.0,105740.0,0.48825828]
[1750031267040,0.57048789,105750.0,105740.0,0.19612]
[1750031267260,0.56160871,105750.0,105740.0,0.19612]
[1750031267696,0.57047503,105750.0,105740.0,0.19612]
[1750031267914,0.57047507,105750.0,105740.0,0.15588]
[1750031268359,0.56160871,105750.0,105740.0,0.15588]
[1750031268582,0.57047507,105750.0,105740.0,0.15588]
[1750031268843,0.56160871,105750.0,105740.0,0.15588]
[1750031269554,0.50348907,105750.0,105740.0,0.15588]
[1750031270205,0.02899576,105750.0,105740.0,0.15588]
[1750031270419,0.04429576,105750.0,105740.0,0.15588]
[1750031270633,0.0153,105750.0,105740.0,0.15588]
[1750031270847,4.276862,105750.0,105740.0,0.59917331]
[1750031271761,0.03668391,105750.0,105740.0,0.59917331]
[1750031271980,0.02780464,105750.0,105740.0,0.59917331]
[1750031272433,4.276862,105750.0,105740.0,0.59917331]
[1750031272646,4.28574127,105750.0,105740.0,0.59917331]
[1750031272864,0.00887904,105750.0,105740.0,0.59917331]
[1750031273109,0.49574969,105760.0,105740.0,0.15588]
[1750031273339,4.276862,105750.0,105740.0,0.59917331]
[1750031273558,4.28574103,105750.0,105740.0,0.59917331]
[1750031273747,0.00887903,105750.0,105740.0,0.59917331]
[1750031273995,0.59171258,105760.0,105740.0,0.59917331]
[1750031274239,4.276862,105750.0,105740.0,0.59917331]
[1750031274467,4.28574103,105750.0,105740.0,0.59917331]
[1750031274691,0.00887903,105750.0,105740.0,0.59917331]
[1750031274916,4.276862,105750.0,105740.0,0.59917331]
[1750031275133,0.00887903,105750.0,105740.0,0.59917331]
[1750031275354,0.58283355,105760.0,105740.0,0.59917331]
[1750031275619,0.02797721,105750.0,105740.0,0.59917331]
[1750031275837,4.276862,105750.0,105740.0,0.59917331]
[1750031276062,4.276862,105750.0,105740.0,0.69541507]
[1750031276282,0.00887896,105750.0,105740.0,0.72691507]
[1750031276525,0.03605638,105760.0,105740.0,0.72691507]
[1750031276749,4.276862,105750.0,105740.0,0.72691507]
[1750031277018,4.28574092,105750.0,105740.0,0.72691507]
[1750031277244,0.00887892,105750.0,105740.0,0.72691507]
[1750031277488,4.276862,105750.0,105740.0,0.72691507]
[1750031277754,4.28574092,105750.0,105740.0,0.72691507]
[1750031278012,4.276862,105750.0,105740.0,0.72691507]
[1750031278259,0.47934969,105760.0,105740.0,0.72791507]
[1750031278509,0.00887892,105750.0,105740.0,0.72791507]
[1750031278761,4.276862,105750.0,105740.0,0.72791507]
[1750031279016,0.02806245,105750.0,105740.0,1.02005335]
[1750031279459,0.02075638,105760.0,105750.0,0.0306]
[1750031279778,0.02075638,105760.0,105750.0,0.86227335]
[1750031280541,0.02075638,105760.0,105750.0,1.33374686]
[1750031280762,0.00047145,105760.0,105750.0,1.52287215]
[1750031281004,0.01909876,105760.0,105750.0,1.03959029]
[1750031281221,0.01909876,105760.0,105750.0,1.04904637]
[1750031281477,0.00147145,105760.0,105750.0,1.03959029]
[1750031281691,0.00047145,105760.0,105750.0,1.04904637]
[1750031281888,0.00047145,105760.0,105750.0,1.03959038]
[1750031282141,0.00047145,105760.0,105750.0,0.86292126]
[1750031282366,0.00047145,105760.0,105750.0,1.05204655]
[1750031282598,0.00047145,105760.0,105750.0,0.66765404]
[1750031282828,0.00047145,105760.0,105750.0,1.07095862]
[1750031283275,0.00047145,105760.0,105750.0,1.06350263]
[1750031283504,0.00047145,105760.0,105750.0,1.05404655]
[1750031283769,0.00047145,105760.0,105750.0,0.84600883]
[1750031284973,0.00047145,105760.0,105750.0,1.04108883]
[1750031287109,0.00047145,105760.0,105750.0,1.01290863]
[1750031289681,0.00047145,105760.0,105750.0,0.81782863]
[1750031289897,0.00047145,105760.0,105750.0,1.01290863]
[1750031290571,0.00047145,105760.0,105750.0,0.81782863]
[1750031290797,0.00047145,105760.0,105750.0,1.01286863]
[1750031297096,0.00047145,105760.0,105750.0,0.81782863]
[1750031297318,0.00047145,105760.0,105750.0,1.01286863]
[1750031299750,0.00047145,105760.0,105750.0,0.42398004]
[1750031300025,0.00047145,105760.0,105750.0,1.01286863]
[1750031300915,0.00047145,105760.0,105750.0,1.06216231]
[1750031301567,0.00047145,105760.0,105750.0,0.86712231]
[1750031301779,0.00047145,105760.0,105750.0,1.06212231]
[1750031302709,0.00047145,105760.0,105750.0,1.09030251]
[1750031302919,0.00047145,105760.0,105750.0,0.89530251]
[1750031303142,0.00047145,105760.0,105750.0,0.39338004]
[1750031303373,0.47551372,105760.0,105750.0,0.39338004]
[1750031303592,0.03237145,105760.0,105750.0,0.58838004]
[1750031303811,0.02464931,105760.0,105750.0,1.03152231]
[1750031304467,0.09304427,105760.0,105750.0,1.03152231]
[1750031305951,0.09304427,105760.0,105750.0,0.58838004]
[1750031306408,0.09304427,105760.0,105750.0,1.03152231]
[1750031307033,0.09304427,105760.0,105750.0,0.58838004]
[1750031307248,0.09304427,105760.0,105750.0,1.03152231]
[1750031308620,0.09304427,105760.0,105750.0,0.58838004]
[1750031309326,0.07644427,105760.0,105750.0,0.58838004]
[1750031309775,0.07644427,105760.0,105750.0,1.03152231]
[1750031309776,0.02464931,105760.0,105750.0,1.03152231]
[1750031312168,0.02464931,105760.0,105750.0,0.58838004]
[1750031312406,0.02464931,105760.0,105750.0,1.03152231]
[1750031312895,0.48389158,105760.0,105750.0,0.39338004]
[1750031313126,0.48389158,105760.0,105750.0,0.58838004]
[1750031313352,0.53563655,105760.0,105750.0,0.49213828]
[1750031313588,0.54451488,105760.0,105750.0,0.49213828]
[1750031313821,0.53563655,105760.0,105750.0,0.49213828]
[1750031314057,0.54451502,105760.0,105750.0,0.49213828]
[1750031314316,0.53563655,105760.0,105750.0,0.2]
[1750031314573,0.54451503,105760.0,105750.0,0.005]
[1750031314843,0.53563655,105760.0,105750.0,0.1598]
[1750031315114,4.81249855,105760.0,105750.0,0.1598]
[1750031315815,4.82137737,105760.0,105750.0,0.15813088]
[1750031316328,4.82137737,105760.0,105750.0,0.00333088]
[1750031316329,5.15249855,105760.0,105750.0,0.00333088]
[1750031316566,5.15249855,105760.0,105750.0,0.15813088]
[1750031316800,5.16137744,105760.0,105750.0,0.15813088]
[1750031317023,5.1123848,105760.0,105750.0,0.15813088]
[1750031317253,5.10350584,105760.0,105750.0,0.15813088]
[1750031317792,5.10350584,105760.0,105750.0,0.15613088]
[1750031318038,5.1123848,105760.0,105750.0,0.15613088]
[1750031318274,5.10350584,105760.0,105750.0,0.1548]
[1750031318531,5.1123848,105760.0,105750.0,0.1548]
[1750031318758,5.07210584,105760.0,105740.0,0.29213828]
[1750031319009,5.07210584,105760.0,105740.0,0.33233828]
[1750031319010,0.42484956,105750.0,105740.0,0.33233828]
[1750031319262,0.52099878,105750.0,105740.0,0.48713828]
[1750031319745,0.0307,105740.0,105730.0,0.11578936]
[1750031319980,0.42484956,105740.0,105730.0,0.27058936]
[1750031320205,0.0307,105740.0,105730.0,0.27058936]
[1750031320433,0.08279988,105740.0,105730.0,0.27058936]
[1750031320888,0.08279988,105740.0,105730.0,0.27258936]
[1750031322288,0.08279988,105740.0,105730.0,0.27458936]
[1750031324029,0.13275829,105750.0,105730.0,0.37083112]
[1750031324253,0.02772928,105750.0,105740.0,0.49039132]
[1750031324494,0.38972836,105760.0,105740.0,0.52159132]
[1750031324724,0.018228,105760.0,105750.0,0.58054956]
[1750031324955,0.00934931,105760.0,105750.0,0.75238068]
[1750031325189,0.00934931,105760.0,105750.0,0.76183694]
[1750031325511,0.00934931,105760.0,105750.0,0.75238068]
[1750031325612,0.00934931,105760.0,105750.0,0.76183694]
[1750031325859,0.00934931,105760.0,105750.0,1.24310051]
[1750031326095,0.01134931,105760.0,105750.0,1.27146821]
[1750031326323,0.01134931,105760.0,105750.0,1.33984841]
[1750031327490,0.00934931,105760.0,105750.0,1.33984841]
[1750031327716,0.00934931,105760.0,105750.0,1.34284841]
[1750031327946,0.00934931,105760.0,105750.0,1.34584841]
[1750031328187,0.00934931,105760.0,105750.0,1.15084841]
[1750031328637,0.00934931,105760.0,105750.0,1.34584841]
[1750031329737,0.00934931,105760.0,105750.0,1.15084841]
[1750031329958,0.00934931,105760.0,105750.0,1.34584841]
[1750031331105,0.00934931,105760.0,105750.0,1.44199763]
[1750031331782,0.00934931,105760.0,105750.0,1.34584841]
[1750031332239,0.00934931,105760.0,105750.0,1.27025905]
[1750031332711,0.00934931,105760.0,105750.0,1.26080342]
[1750031332950,0.00934931,105760.0,105750.0,1.86149488]
[1750031333241,0.00934931,105760.0,105750.0,1.45805999]
[1750031333475,0.00934931,105760.0,105750.0,1.65305999]
[1750031333930,0.00934931,105760.0,105750.0,1.65005999]
[1750031334160,0.00934931,105760.0,105750.0,1.64705999]
[1750031334390,0.00934931,105760.0,105750.0,1.65405999]
[1750031334860,0.00934931,105760.0,105750.0,1.66340899]
[1750031335387,0.00934931,105760.0,105750.0,1.70690263]
[1750031335854,0.00934931,105760.0,105750.0,1.51190263]
[1750031336078,0.00934931,105760.0,105750.0,1.43665771]
[1750031336301,0.00934931,105760.0,105750.0,1.6692329]
[1750031338621,0.00934931,105760.0,105750.0,1.6691929]
[1750031339965,0.00934931,105760.0,105750.0,1.65973727]
[1750031340200,0.00934931,105760.0,105750.0,1.67864862]
[1750031341654,0.00934931,105760.0,105750.0,0.49859324]
[1750031341908,0.04084931,105760.0,105750.0,0.40138004]
[1750031342191,0.08501508,105760.0,105750.0,0.59634004]
[1750031342717,0.08501508,105760.0,105750.0,0.59034004]
[1750031342973,0.08501508,105760.0,105750.0,0.59534004]
[1750031343608,0.08501508,105760.0,105750.0,0.44058004]
[1750031343876,0.47916464,105760.0,105750.0,0.29620176]
[1750031344095,0.48804288,105760.0,105750.0,0.29620176]
[1750031344322,0.48804296,105760.0,105750.0,0.29620176]
[1750031344811,0.48804296,105760.0,105750.0,0.29420176]
[1750031345030,0.08501508,105760.0,105750.0,0.29720176]
[1750031346821,0.08501508,105760.0,105750.0,0.10224176]
[1750031347091,0.47916464,105760.0,105750.0,0.25700176]
[1750031347368,0.48804298,105760.0,105750.0,0.25700176]
[1750031347668,0.09389342,105760.0,105750.0,0.25700176]
[1750031347926,0.47916464,105760.0,105750.0,0.16076]
[1750031348168,0.51647101,105760.0,105750.0,0.16076]
[1750031348397,0.50759264,105760.0,105750.0,0.16076]
[1750031348685,0.51647102,105760.0,105750.0,0.15776]
[1750031349109,0.51647102,105760.0,105750.0,0.15976]
[1750031349336,0.50759264,105760.0,105750.0,0.15976]
[1750031349557,0.51647102,105760.0,105750.0,0.15976]
[1750031349782,0.50759264,105760.0,105750.0,0.15976]
[1750031350000,0.50759264,105760.0,105750.0,0.002]
[1750031350001,0.51647102,105760.0,105750.0,0.002]
[1750031350234,0.51647122,105760.0,105750.0,0.1578]
[1750031350460,0.51647122,105760.0,105750.0,0.003]
[1750031350685,0.51647122,105760.0,105750.0,0.1578]
[1750031350891,0.51647131,105760.0,105750.0,0.1578]
[1750031351101,0.50759264,105760.0,105750.0,0.1578]
[1750031351605,0.51647132,105760.0,105750.0,0.1578]
[1750031351870,0.50759264,105760.0,105750.0,0.1578]
[1750031352100,0.5164713,105760.0,105750.0,0.1578]
[1750031352327,0.50759264,105760.0,105750.0,0.1578]
[1750031352780,0.51647132,105760.0,105750.0,0.1578]
[1750031353230,0.51647127,105760.0,105750.0,0.1578]
[1750031353445,0.51647129,105760.0,105750.0,0.1578]
[1750031353941,5.12445464,105760.0,105750.0,0.003]
[1750031354215,5.52748345,105760.0,105750.0,0.003]
[1750031354429,5.13999395,105760.0,105750.0,0.003]
[1750031354642,5.13333439,105760.0,105750.0,0.003]
[1750031354865,5.12445464,105760.0,105750.0,0.001]
[1750031355082,4.308962,105750.0,105740.0,0.1548]
[1750031355294,0.0321,105740.0,105730.0,0.11578936]
[1750031355521,0.0321,105740.0,105730.0,0.27058936]
[1750031357265,0.0321,105740.0,105730.0,0.27158936]
[1750031357516,0.0321,105740.0,105730.0,0.27358936]
[1750031358433,0.060534,105740.0,105730.0,0.27358936]
[1750031358644,0.11936293,105740.0,105730.0,0.27358936]
[1750031359073,0.11936293,105740.0,105730.0,0.11878936]
[1750031359289,0.51351249,105740.0,105730.0,0.198]
[1750031359498,0.52239265,105740.0,105730.0,0.1578]
[1750031359922,0.52239269,105740.0,105730.0,0.1578]
[1750031360348,0.51351249,105740.0,105730.0,0.003]
[1750031360568,0.11936293,105740.0,105730.0,0.1578]
[1750031361002,0.85351249,105740.0,105730.0,0.003]
[1750031361214,5.13925481,105740.0,105730.0,0.003]
[1750031361426,5.13037449,105740.0,105730.0,0.003]
[1750031361644,5.13925502,105740.0,105730.0,0.003]
[1750031361877,5.13037449,105740.0,105730.0,0.001]
[1750031362088,5.1459163,105740.0,105730.0,0.001]
[1750031362305,5.1370353,105740.0,105730.0,0.001]
[1750031362526,5.13037449,105740.0,105730.0,0.001]
[1750031362749,5.1459164,105740.0,105730.0,0.001]
[1750031362997,0.0316,105730.0,105720.0,0.29213828]
[1750031363219,0.86189358,105740.0,105720.0,0.44693828]
[1750031363435,4.276862,105730.0,105720.0,0.44693828]
[1750031363661,0.01256376,105730.0,105720.0,0.44693828]
[1750031364143,0.01256376,105730.0,105720.0,0.44893828]
[1750031364355,0.02886376,105730.0,105720.0,0.44893828]